Cogmind - Beta 16 @@@ ROGUE MODE // 2025.12.29 @ 12:45:30 Player: Jamba27 Result: Destroyed by S-43 Plague with Heavy Machine Gun Performance ------------- Evolutions (7) 3500 Regions Visited (20) 4000 Robots Destroyed (121) 605 Value Destroyed (9354) 9354 Prototype IDs (35) 700 Alien Tech Used (0) 0 Bonus (7710) 7710 TOTAL SCORE: 25869 Bonus ------- High Alert Combat Kills 314 Follower Combat Kills 1044 Entered Garrisons 1600 Used RIF Installer 4500 Aligned with FarCom 300 Friendly Fire -48 Cogmind --------- Core Integrity 0/1300 Matter 242/700 Energy 1/100 System Corruption 50% Temperature Cool (0) Movement Treading (250) Ox1 Location -3/Garrison Parts ------- > --- POWER (2) -------- (None) > --- PROPULSION (5) --- Armored Medium Treads Armored Medium Treads Heavy Siege Treads > --- UTILITY (11) ----- Advanced Heat Sink Huge Storage Unit Advanced Matter Compressor Experimental Optical Array Advanced Signal Interpreter Weapon Mount Advanced Transmission Jammer Advanced ECM Suite > --- WEAPON (3) ------- (None) > --- INVENTORY (25) --- Light Nuclear Core Heavy Siege Treads Biometal Medium Treads Cooled Impulse Thruster Relay Coupler [NC] (36) Relay Coupler [Swarmer] (31) Relay Coupler [Swarmer] (39) Relay Coupler [Grunt] (35) Relay Coupler [Grunt] (35) Relay Coupler [Duelist] (44) Relay Coupler [Sentry] (30) Relay Coupler [Sentry] (35) Relay Coupler [Sentry] (26) Relay Coupler [Demolisher] (35) Relay Coupler [Hunter] (26) Relay Coupler [Heavy] (20) Gamma Rifle Peak State ------------ > --- POWER ------------ Improved Deuterium Engine Improved Deuterium Engine > --- PROPULSION ------- Biometal Medium Treads Flexi-carbon Leg Myomer Leg Myomer Leg Biometal Leg > --- UTILITY ---------- Lightpack 2.0 Advanced Sensor Array Advanced Signal Interpreter Advanced Phase Shifter Improved Medium Armor Plating Graphene Brace Relay Coupler [NC] Relay Coupler [Swarmer] Relay Coupler [Sentry] > --- WEAPON ----------- Improved Remote Datajack Centrium Greatsword > --- INVENTORY -------- Light Nuclear Core Light Antimatter Reactor Particle Reactor Biometal Medium Treads Compact Wheel Linear Gravjet Improved Antigrav System Field Propulsion Array High-capacity Storage Unit Huge Storage Unit Advanced Matter Compressor Advanced Matter Compressor Advanced Launcher Guidance Computer Weapon Mount Matter Filter Improved Particle Charger Improved Utility Shielding Relay Coupler [Grunt] Relay Coupler [Sentry] Relay Coupler [Hunter] Relay Coupler [Heavy] Relay Coupler [Heavy] Relay Coupler [Behemoth] Heavy Disruptor Cannon Compact HERF Cannon Heavy Plasma Cannon Heavy Plasma Cannon Heavy Mass Driver Smartbomb Launcher Improved Datajack Advanced Remote Datajack Katana Armageddon Trap [Rating: 152] Favorites ----------- Power Improved Ion Engine Engine Improved Ion Engine Power Core Light Nuclear Core Reactor Light Quantum Reactor Propulsion Light Treads Treads Light Treads Leg Biometal Leg Wheel Centrium Wheel Hover Unit Improved Antigrav System Utility Relay Coupler [NC] Device Graphene Brace Storage Lightpack 2.0 Processor Advanced Signal Interpreter Hackware Relay Coupler [NC] Protection Improved Medium Armor Plating Weapon Particle Gun Energy Gun Particle Gun Energy Cannon Heavy Plasma Cannon Ballistic Gun Assault Rifle Ballistic Cannon Heavy Mass Driver Launcher Heavy Missile Launcher Special Weapon Advanced Remote Datajack Impact Weapon Heavy Flail Slashing Weapon Katana Special Melee Weapon Improved Datajack Build | -11 -10 -10 -10 -9 -8 -8 -7 -7 -6 -6 -5 -5 -5 -5 -4 -4 -3 -3 -3 -3 ------- Run | Yrd Mat Min Exi Min Mat Gar Fac Gar Fac Gar Fac Gar Fac Gar Fac Gar Res Gar Res Gar Slots Evolved 14 | . . . . . 4 . 2 . 2 . 2 . . . 2 . 2 . . . Power 1 | . . . . . . . . . . . . . . . 1 . . . . . Propulsion 3 | . . . . . 1 . . . . . . . . . 1 . 1 . . . Utility 9 | . . . . . 3 . 2 . 2 . 1 . . . . . 1 . . . Weapon 1 | . . . . . . . . . . . 1 . . . . . . . . . Parts Attached 166 | 6 8 4 . 1 22 12 11 3 5 6 3 4 5 10 6 1 26 10 15 8 Power 20 | 1 2 . . . 2 1 1 1 . 1 . 1 1 . 1 . 3 2 3 . Engine 8 | 1 2 . . . 1 . . 1 . . . . 1 . 1 . 1 . . . Core 5 | . . . . . 1 1 1 . . 1 . 1 . . . . . . . . Reactor 7 | . . . . . . . . . . . . . . . . . 2 2 3 . Propulsion 42 | 2 . . . . 6 4 3 . 1 3 1 . . 2 . . 11 2 6 1 Treads 18 | 2 . . . . 4 2 . . . 2 . . . . . . 1 . 6 1 Leg 18 | . . . . . 2 2 3 . 1 1 1 . . 2 . . 4 2 . . Wheel 2 | . . . . . . . . . . . . . . . . . 2 . . . Hover 4 | . . . . . . . . . . . . . . . . . 4 . . . Flight . | . . . . . . . . . . . . . . . . . . . . . Utility 59 | 1 4 2 . . 6 2 4 2 3 1 2 2 3 3 3 . 10 3 2 6 Device 17 | . . 2 . . 2 . . . . 1 1 . . 1 1 . 3 2 1 3 Storage 9 | 1 3 . . . 1 . . . . . . . . . 1 . 1 . . 2 Processor 7 | . . . . . 1 . 2 . 1 . . . 1 . . . 2 . . . Hackware 16 | . . . . . . 1 1 2 2 . . 1 1 1 1 . 4 . 1 1 Protection 10 | . 1 . . . 2 1 1 . . . 1 1 1 1 . . . 1 . . Artifact . | . . . . . . . . . . . . . . . . . . . . . Weapon 45 | 2 2 2 . 1 8 5 3 . 1 1 . 1 1 5 2 1 2 3 4 1 Energy Gun 7 | . 1 . . . 1 1 1 . . . . . . . . . . 1 2 . Energy Cannon 13 | . . . . . 4 2 . . 1 . . . 1 2 2 . . . . 1 Ballistic Gun 4 | 2 . . . . 1 . . . . . . . . . . . . 1 . . Ballistic Cannon 4 | . . . . . . . . . . . . . . 1 . . . 1 2 . Launcher 5 | . . . . 1 2 . 1 . . 1 . . . . . . . . . . Special Weapon 7 | . 1 1 . . . . 1 . . . . 1 . 2 . . 1 . . . Impact Weapon 2 | . . 1 . . . 1 . . . . . . . . . . . . . . Slashing Weapon 2 | . . . . . . 1 . . . . . . . . . . 1 . . . Piercing Weapon . | . . . . . . . . . . . . . . . . . . . . . Special Melee Weapon 1 | . . . . . . . . . . . . . . . . 1 . . . . Unidentified Prototypes 8 | . . . . . 1 . 3 . . . . . . . 1 . 3 . . . Corrupted Parts 3 | . . . . . . 1 . . . . . . . 1 1 . . . . . System Corruption 5 | . . . . . . 1 . . . . . . . 3 1 . . . . . Parts Lost 74 | . . . . . 4 11 1 . . 3 . 2 . 1 . 6 20 2 17 7 Power 14 | . . . . . 2 1 1 . . 1 . 1 . . . . 4 . 2 2 Propulsion 18 | . . . . . 1 5 . . . . . . . . . 1 8 . 3 . Utility 20 | . . . . . 1 1 . . . . . 1 . 1 . 3 3 . 7 3 Weapon 22 | . . . . . . 4 . . . 2 . . . . . 2 5 2 5 2 Highest Loss Streak 12 | . . . . . 2 3 1 . . 3 . 1 . 1 . 6 12 2 8 7 To Critical Strikes . | . . . . . . . . . . . . . . . . . . . . . Average Backups 26 | 1 11 17 17 17 30 36 38 38 38 38 37 34 35 36 33 34 26 13 18 16 Power 1 | . 1 1 1 1 1 2 2 1 1 1 1 . . 2 3 3 2 2 1 1 Propulsion 2 | . . 3 3 3 3 2 3 3 4 5 4 5 5 4 4 5 3 . 2 3 Utility 14 | . 5 8 8 8 12 21 27 27 22 21 20 19 19 18 13 14 12 7 11 10 Weapon 6 | . 4 5 5 5 11 9 5 6 8 8 9 7 8 8 8 9 6 3 3 1 Tool/Special . | . . . . . . . . . . . . . . . . . . . . . Unused Backups 83 | . 2 1 . . 7 12 5 . 8 4 1 5 6 5 2 1 10 . . 14 Power 4 | . 2 . . . . . . . 1 . . . . . . . 1 . . . Propulsion 11 | . . . . . 2 1 . . 1 2 . . . 1 . . 2 . . 2 Utility 61 | . . . . . 4 10 5 . 6 2 1 4 5 4 2 1 5 . . 12 Weapon 7 | . . 1 . . 1 1 . . . . . 1 1 . . . 2 . . . Tool/Special . | . . . . . . . . . . . . . . . . . . . . . Average Slot Usage (%) 82 | . 96 100 100 100 78 77 80 83 84 80 64 79 87 82 84 82 75 64 68 86 Engine 5 | . 14 14 14 14 8 . . 2 6 4 . . 2 5 9 10 6 . . . Core 1 | . . . . . . 8 7 4 . 1 5 4 2 . . . . . 1 . Reactor 1 | . . . . . . . . . . . . . . . . . 1 5 4 8 Treads 12 | . 27 28 28 28 23 16 10 . . 4 . . . . . . . . 11 18 Leg 9 | . . . . . 1 9 11 23 20 13 15 17 17 17 18 19 17 10 5 . Device 7 | . . 13 14 14 7 9 5 . . 2 . . . 3 3 8 9 9 9 22 Storage 8 | . 14 14 14 14 9 9 7 7 6 6 5 5 5 5 5 5 4 4 4 13 Processor 4 | . . . . . 5 . 11 7 7 6 5 5 8 5 5 3 6 9 9 9 Hackware 9 | . . . . . . . 8 22 29 28 23 23 22 19 21 19 14 9 7 3 Protection 2 | . 11 . . . 4 7 . . . . 4 8 6 4 4 . . 1 1 . Energy Gun 4 | . 6 14 14 14 7 1 1 . . . . . . . . . . 3 3 3 Energy Cannon 2 | . . . . . 5 8 2 . 2 3 . 4 5 5 9 6 1 . . 3 Ballistic Gun 2 | . 19 6 . 8 3 . . . . . . . . . . . . 1 . . Special Weapon 1 | . 1 . . . . . 1 7 5 4 . 1 5 3 5 3 3 . . . Impact Weapon 2 | . . 7 14 5 . 4 7 7 . . . 2 4 1 . 2 2 . . . Peak Build Rating 152 | 6 11 17 17 17 59 63 100 100 103 107 96 110 113 114 132 132 152 109 117 134 Average Rating 75 | 4 9 13 15 16 51 58 87 92 100 100 91 102 111 111 126 122 116 88 101 128 On Entrance 70 | . 6 11 14 17 16 59 61 100 94 100 97 94 107 113 114 132 101 50 109 83 Avg Prop Armor Cover (%) 5 | . . . . . 9 4 10 . . . . . . 3 . . 9 3 2 . Naked Turns . | . . . . . . . . . . . . . . . . . . . . . Heaviest Build 141 | 14 92 53 53 55 37 31 35 18 23 25 14 39 42 60 66 54 134 140 141 141 Greatest Support 151 | 40 40 40 40 40 60 60 74 74 74 105 64 64 64 73 101 101 135 83 151 151 Greatest Overweight (x) 7 | . 2 1 1 1 5 2 1 . . 1 . . . 1 . . 6 7 7 1 Average Overweight (x) . | . . 1 1 1 . . . . . . . . . . . . . 2 . . Largest Inventory Capacity 40 | 8 25 20 20 20 40 40 40 40 40 40 40 40 40 40 40 40 40 25 25 25 Average Capacity 31 | 7 16 20 20 20 40 40 40 40 40 40 40 40 40 40 40 40 32 25 25 25 Most Carried 40 | 4 18 20 20 20 40 40 40 40 40 40 40 39 40 40 40 40 40 22 25 25 Average Carried 28 | 1 11 18 18 19 30 38 39 39 39 39 39 36 38 39 37 39 30 16 21 17 Final Capacity 40 | 8 20 20 20 20 40 40 40 40 40 40 40 40 40 40 40 40 25 25 25 25 Final Carried 40 | 4 18 18 20 20 39 40 40 40 40 39 39 37 40 38 38 39 16 22 25 18 Class Distribution -------------------- 24% | Mutant 16% | Hauler-Mutant 13% | Bothacker-Mutant 12% | Botlord-Mutant 7% | Skirmisher 6% | Botlord-Skirmisher 5% | Botlord-Assassin 4% | Scavenger-Skirmisher Dominant Class ---------------- Mutant | -10/Materials Mutant | -10/Mines Mutant | -10/Exiles Skirmisher | -9/Mines Hauler-Mutant | -8/Materials Hauler-Mutant | -8/Garrison Bothacker-Mutant | -7/Factory Bothacker-Mutant | -7/Garrison Bothacker-Mutant | -6/Factory Bothacker-Mutant | -6/Garrison Botlord-Mutant | -5/Factory Botlord-Mutant | -5/Garrison Botlord-Mutant | -5/Factory Botlord-Mutant | -5/Garrison Botlord-Skirmisher | -4/Factory Botlord-Skirmisher | -4/Garrison Botlord-Assassin | -3/Research Mutant | -3/Garrison Skirmisher | -3/Research Infiltrator-Tank | -3/Garrison Resources | -11 -10 -10 -10 -9 -8 -8 -7 -7 -6 -6 -5 -5 -5 -5 -4 -4 -3 -3 -3 -3 ----------- Run | Yrd Mat Min Exi Min Mat Gar Fac Gar Fac Gar Fac Gar Fac Gar Fac Gar Res Gar Res Gar Matter Collected 5749 | 219 267 106 . 85 426 419 115 47 184 27 . 239 68 325 . 362 1264 433 1163 . Remotely . | . . . . . . . . . . . . . . . . . . . . . Salvage Created 5525 | 10 220 123 . 101 712 648 44 47 239 65 . 152 . 769 . 231 1021 471 672 . Parts 239 | 3 16 4 . 3 31 38 . . 10 5 . 4 . 37 . 5 44 14 25 . Haulers Intercepted 3 | . 1 . . . 2 . . . . . . . . . . . . . . . Recyclers Shooed 5 | . . . . . . . . . . . . . . . . . 3 . 2 . Parts Field Recycled . | . . . . . . . . . . . . . . . . . . . . . Retrieved Matter . | . . . . . . . . . . . . . . . . . . . . . Parts Self-Destructed . | . . . . . . . . . . . . . . . . . . . . . Prevented . | . . . . . . . . . . . . . . . . . . . . . Parts Restored . | . . . . . . . . . . . . . . . . . . . . . Kills | -11 -10 -10 -10 -9 -8 -8 -7 -7 -6 -6 -5 -5 -5 -5 -4 -4 -3 -3 -3 -3 ------- Run | Yrd Mat Min Exi Min Mat Gar Fac Gar Fac Gar Fac Gar Fac Gar Fac Gar Res Gar Res Gar Combat Hostiles Destroyed 109 | . 8 5 . 4 13 26 1 1 4 1 . 2 . 12 . 3 8 7 13 1 Melee 10 | . . . . . . . . 1 . . . . . 1 . . 6 1 . 1 Guns 24 | . 8 3 . 4 5 1 . . . . . . . . . . . . 3 . Cannons 51 | . . 1 . . 6 11 1 . 3 1 . 1 . 11 . 1 2 3 10 . AOE 15 | . . . . . 1 13 . . . . . 1 . . . . . . . . Classes Destroyed 13 | 1 3 1 . 1 4 1 . . 1 . . . . . . . 1 . . . Worker 2 | . . . . . . . . . . . . . . . . . 1 . 1 . Builder 3 | . . . . . 1 . . . . . . . . . . . 2 . . . Tunneler 1 | 1 . . . . . . . . . . . . . . . . . . . . Hauler 3 | . 1 . . . 2 . . . . . . . . . . . . . . . Recycler 6 | . . . . 1 . . . . . . . . . . . . 4 . 1 . Operator 1 | . . . . . . . . . 1 . . . . . . . . . . . Swarmer 25 | . 6 . . 1 . 11 . . . . . . . 3 . . . 3 . 1 Grunt 33 | . 2 4 . . 6 10 1 . 2 . . . . 4 . 2 2 . . . Duelist 2 | . . . . . 1 . . . . . . . . . . 1 . . . . Sentry 14 | . . . . . 4 3 . 1 1 1 . 2 . . . . . 2 . . Hunter 6 | . . . . . 2 . . . . . . . . . . . . . 4 . Programmer 25 | . . . . . . 2 . . 1 . . . . 5 . . 6 2 9 . Assembled 4 | . . 1 . 3 . . . . . . . . . . . . . . . . Best Kill Streak 6 | 1 3 4 . 1 3 5 1 1 2 1 . 2 . 3 . 2 3 2 6 1 Combat Bots Only 6 | . 3 4 . 1 3 5 1 1 2 1 . 2 . 3 . 2 3 2 6 1 Max Kills in Single Turn 5 | 1 1 1 . 1 1 5 1 1 1 1 . 1 . 1 . 1 1 1 1 1 Gunslinging . | . . . . . . . . . . . . . . . . . . . . . Exploded 5 | . . . . . 1 5 . . . . . 1 . . . . . . . . Melee 1 | . . . . . . . . 1 . . . . . 1 . . 1 1 . 1 Uniques/NPCs Destroyed . | . . . . . . . . . . . . . . . . . . . . . Combat | -11 -10 -10 -10 -9 -8 -8 -7 -7 -6 -6 -5 -5 -5 -5 -4 -4 -3 -3 -3 -3 -------- Run | Yrd Mat Min Exi Min Mat Gar Fac Gar Fac Gar Fac Gar Fac Gar Fac Gar Res Gar Res Gar Hostile Shots Fired 1292 | . 49 20 . 19 88 133 1 36 47 104 . 11 . 125 2 21 231 55 267 83 Missed 414 | . 13 6 . 8 19 35 1 12 22 44 . 6 . 42 1 4 80 16 89 16 Hits 878 | . 36 14 . 11 69 98 . 24 25 60 . 5 . 83 1 17 151 39 178 67 Melee 16 | . . . . 2 14 . . . . . . . . . . . . . . . Projectile 862 | . 36 14 . 9 55 98 . 24 25 60 . 5 . 83 1 17 151 39 178 67 Critical Strikes 51 | . . . . . 8 6 . . 2 1 . 2 . 4 . 1 13 1 8 5 Actively Blocked 22 | . . . . . . . . . . . . . . . . 1 13 1 7 . Part Disruptions 5 | . . . . 1 . . . . . . . . . . . . 2 . . 2 Damage Taken 17558 | . 337 167 . 154 1284 1710 15 156 271 787 . 199 . 1529 83 944 3203 925 4319 1475 Core 2201 | . 34 62 . 10 115 142 . 33 70 127 . 26 . 81 . 187 553 153 471 137 Absorbed by Shields 196 | . . . . . 60 . . 20 . . . 11 . 30 . . . . . 75 Reduced by Siege Mode 368 | . . . . . . . . . . . . . . . . . . . 310 58 Redirected to Shielding 17 | . 17 . . . . . . . . . . . . . . . . . . . Regen/Repaired (Parts) 337 | . 215 . . . . . 16 . 19 . . . . . 87 . . . . . Core Remaining (%) 79 | 100 . . . 57 . 53 . 95 . 76 . . . 89 . 83 . . . . Volleys Fired 531 | 4 26 11 . 15 61 54 4 1 46 14 . 28 5 64 10 26 25 40 85 12 Largest 2 | 2 2 2 . 2 2 2 1 1 1 1 . 1 1 2 1 2 1 2 2 2 Hottest 185 | 40 100 165 . 85 135 136 60 10 85 85 . 85 90 180 90 184 90 169 159 185 Shots Fired 713 | 8 48 22 . 30 100 84 4 1 46 14 . 28 5 69 10 33 25 49 118 19 Gun 252 | 8 44 14 . 30 50 14 . . . . . . . . . . . 25 54 13 Cannon 374 | . . . . . 43 64 3 . 37 9 . 19 3 61 6 20 15 24 64 6 Launcher 29 | . . . . . 7 6 . . . 4 . 4 . . . 8 . . . . Special 58 | . 4 8 . . . . 1 1 9 1 . 5 2 8 4 5 10 . . . Kinetic 225 | 8 43 3 . 15 25 . . . . . . . . 9 . . 10 30 82 . Thermal 347 | . 5 19 . 15 68 67 3 . 37 9 . 19 3 52 6 9 5 . 30 . Explosive 26 | . . . . . 4 6 . . . 4 . 4 . . . 8 . . . . Electromagnetic 69 | . . . . . 3 11 . . . . . . . . . 11 . 19 6 19 Robot Hit Streak 22 | 1 7 15 . 4 15 12 5 3 7 5 . 6 4 11 6 7 9 13 22 9 Robot Miss Streak 5 | 2 2 2 . 3 2 4 1 . 4 1 . 1 . 5 . 2 1 2 2 1 Penetration Max 1 | . . . . . . . . . . . . . . . . . 1 . 1 . Secondary Targets 2 | . 2 . . . . . . . . . . . . . . . . . . . Max Gunslinging Chain 1 | . 1 . . . . . . . . . . . . . . . . . . . Shots Hit Robots 480 | 3 28 16 . 17 76 54 3 3 24 6 . 6 2 58 4 16 40 33 76 15 Core Hits 174 | 1 12 5 . 9 32 29 2 1 3 2 . 1 . 18 . 4 13 11 23 8 Critical Kills 3 | . . . . . 1 . . . 1 . . . . . . 1 . . . . Critical Parts Destroyed 1 | . 1 . . . . . . . . . . . . . . . . . . . Critical Strikes 23 | . 1 1 . . 4 1 . . 1 . . . . 3 . 1 3 2 5 1 Burn 4 | . . 1 . . 3 . . . . . . . . . . . . . . . Meltdown 3 | . . . . . 1 . . . 1 . . . . . . 1 . . . . Destroy 1 | . 1 . . . . . . . . . . . . . . . . . . . Blast 11 | . . . . . . . . . . . . . . 3 . . 2 1 5 . Corrupt 3 | . . . . . . 1 . . . . . . . . . . . 1 . 1 Sever 1 | . . . . . . . . . . . . . . . . . 1 . . . Melee Attacks 168 | . . 11 . . 1 39 2 6 3 . . 19 3 20 . 18 38 8 . . Impact 104 | . . 11 . . 1 37 2 6 . . . 19 3 4 . 17 4 . . . Slashing 63 | . . . . . . 2 . . 3 . . . . 16 . . 34 8 . . Piercing . | . . . . . . . . . . . . . . . . . . . . . Sneak Attacks 8 | . . 1 . . . . . . 1 . . . . . . . 6 . . . Combat Hostiles . | . . . . . . . . . . . . . . . . . . . . . Follow-up Attacks . | . . . . . . . . . . . . . . . . . . . . . Damage Inflicted 16458 | 53 369 286 . 234 1504 2117 47 76 606 154 . 103 17 2442 . 427 2733 1262 3879 149 Guns 3272 | 53 369 155 . 234 519 205 . . . . . . . . . . . 399 1274 64 Cannons 8527 | . . . . . 736 892 47 . 500 154 . 32 . 1821 . 416 735 578 2595 21 Explosions 1499 | . . . . . 249 969 . . . . . 71 . . . 11 . 199 . . Melee 2885 | . . 48 . . . 51 . 76 106 . . . . 621 . . 1897 86 . . Ramming 192 | . . . . . . . . . . . . . 17 . . . 101 . 10 64 Kinetic 5336 | 53 352 . . 131 183 . . . . . . . . 522 . . 669 570 2856 . Thermal 5827 | . 17 238 . 103 1072 1059 47 . 500 154 . 32 . 1299 . 98 66 199 943 . Explosive 1165 | . . . . . 204 879 . . . . . 71 . . . 11 . . . . Electromagnetic 1053 | . . . . . 45 128 . . . . . . . . . 318 . 407 70 85 Impact 175 | . . 48 . . . 51 . 76 . . . . . . . . . . . . Slashing 2710 | . . . . . . . . . 106 . . . . 621 . . 1897 86 . . Piercing . | . . . . . . . . . . . . . . . . . . . . . Highest Corruption 50 | . . . . . 3 7 1 1 1 1 . . . 13 3 14 10 13 39 50 Average Corruption 10 | . . . . . 3 5 1 1 1 1 . . . 9 2 5 6 12 20 39 Corruption Purged . | . . . . . . . . . . . . . . . . . . . . . Corruption Blocked . | . . . . . . . . . . . . . . . . . . . . . Effects 313 | . . . . . 2 56 4 2 4 1 . . . 26 4 12 30 33 107 32 Message Errors 88 | . . . . . 1 15 1 . 2 . . . . 9 3 3 9 7 32 6 Matter Fused 70 | . . . . . . 17 1 1 . . . . . 3 . 2 9 8 21 8 Heat Flow Errors 33 | . . . . . 1 4 . . 2 . . . . 2 . 2 4 3 11 4 Energy Discharges 25 | . . . . . . 7 . . . . . . . . 1 . 2 3 9 3 Parts Rejected 9 | . . . . . . 1 . 1 . . . . . 2 . . 1 1 1 2 Parts Fused 4 | . . . . . . . . . . . . . . 1 . . 1 . 1 1 Data Loss (minor) 33 | . . . . . . 5 1 . . 1 . . . 3 . 3 3 3 12 2 Data Loss (major) 14 | . . . . . . 3 . . . . . . . 1 . 1 1 2 6 . Misfires 11 | . . . . . . 1 . . . . . . . 1 . . . 3 4 2 Alerts 8 | . . . . . . 1 1 . . . . . . 1 . . . 2 3 . Misdirections 5 | . . . . . . . . . . . . . . . . . . . 3 2 Weapon Failures 13 | . . . . . . 2 . . . . . . . 3 . 1 . 1 4 2 Overload Shots . | . . . . . . . . . . . . . . . . . . . . . Overflow Damage 1477 | . . . . . . 151 . . 84 . . . . 199 . 44 376 128 495 . Projectiles 993 | . . . . . . 49 . . 32 . . . . 156 . 44 89 128 495 . Explosions 96 | . . . . . . 96 . . . . . . . . . . . . . . Melee 388 | . . . . . . 6 . . 52 . . . . 43 . . 287 . . . Knockbacks 31 | . . . . . . 1 . . . . . . . 3 . . 3 1 23 . Impact 1 | . . . . . . 1 . . . . . . . . . . . . . . Kinetic 27 | . . . . . . . . . . . . . . 3 . . 3 1 20 . Secondary 3 | . . . . . . . . . . . . . . . . . . . 3 . Self-Inflicted Damage 125 | . . . . . 18 69 . . . 3 . . . . . 35 . . . . Shots 5 | . . . . . 1 2 . . . 1 . . . . . 1 . . . . Rammed 7 | . . . . . . . . . . . . . . . . . . . . 7 Targets Rammed 15 | . . . . . . . . . . . . . 1 . . . 5 . 1 8 Kicked 7 | . . . . . . . . . . . . . 1 . . . 5 . 1 . Crushed 1 | . . . . . . . . . . . . . . . . . . . . 1 Highest Temperature 437 | . 48 255 . 162 331 264 . . 204 144 . 288 56 219 72 348 250 336 437 201 Average Temperature 86 | . 15 101 . 46 89 97 . . 68 56 . 113 24 66 29 139 59 126 114 58 Received Heat Transfer 1754 | . 78 48 . 80 264 477 9 42 93 96 . 27 . 231 9 90 144 36 30 . Effects 9 | . . . . . . 2 . . . . . 2 . . . . . . 5 . Shutdowns 1 | . . . . . . . . . . . . . . . . . . . 1 . Interference 7 | . . . . . . 2 . . . . . 2 . . . . . . 3 . Damage (minor) 1 | . . . . . . . . . . . . . . . . . . . 1 . Siege Activations 4 | . . . . . . . . . . . . . . . . . . . 3 1 Total Turns 213 | . . . . . . . . . . . . . . . . . . . 187 26 Longest Duration 99 | . . . . . . . . . . . . . . . . . . . 99 26 Martial Activations . | . . . . . . . . . . . . . . . . . . . . . Shielding Activations . | . . . . . . . . . . . . . . . . . . . . . Robots Disrupted 1 | . . . . . . . . . . . . . . . . . . 1 . . Combat Hostiles 1 | . . . . . . . . . . . . . . . . . . 1 . . Robots Corrupted 4 | . . . . . . . . . . . . . . . . 1 . 3 . . Combat Hostiles 4 | . . . . . . . . . . . . . . . . 1 . 3 . . Parts Fried 7 | . . . . . . . . . . . . 1 . . . 2 . 4 . . Impact Corruptions 1 | . . . . . . 1 . . . . . . . . . . . . . . Robots Melted 5 | . . 1 . . 1 1 . . 1 . . . . . . 1 . . . . Combat Hostiles 5 | . . 1 . . 1 1 . . 1 . . . . . . 1 . . . . Parts Melted 21 | . . 1 . . 2 5 . . 2 . . . . 3 . 2 4 . 2 . Heat Transferred 8517 | . 37 887 . 259 2257 1800 74 . 592 185 . 37 . 1077 . 150 100 100 962 . Parts Sabotaged . | . . . . . . . . . . . . . . . . . . . . . Parts Stolen . | . . . . . . . . . . . . . . . . . . . . . Parts Stripped . | . . . . . . . . . . . . . . . . . . . . . Power Chain Reactions 2 | . . . . . . 1 . . . . . . . . . . . 1 . . Alert | -11 -10 -10 -10 -9 -8 -8 -7 -7 -6 -6 -5 -5 -5 -5 -4 -4 -3 -3 -3 -3 ------- Run | Yrd Mat Min Exi Min Mat Gar Fac Gar Fac Gar Fac Gar Fac Gar Fac Gar Res Gar Res Gar Maximum Alert Level 4 | . . . . . . 4 3 1 1 1 . 1 . 2 1 . . 1 . . Low Security (%) 76 | 100 100 100 . 100 100 24 . . 85 67 100 85 100 34 88 100 100 30 100 100 Level 1 11 | . . . . . . 7 17 100 14 32 . 14 . 54 11 . . 69 . . Level 2 5 | . . . . . . 18 69 . . . . . . 11 . . . . . . Level 3 3 | . . . . . . 27 12 . . . . . . . . . . . . . Level 4 2 | . . . . . . 21 . . . . . . . . . . . . . . Level 5 . | . . . . . . . . . . . . . . . . . . . . . High Security . | . . . . . . . . . . . . . . . . . . . . . Max Security . | . . . . . . . . . . . . . . . . . . . . . Peak Influence 1405 | 5 70 72 . 20 131 1405 730 387 228 235 114 209 191 421 220 140 115 307 172 82 Initial 730 | . . . . . . 87 730 257 203 79 100 37 109 3 220 . 77 7 172 26 Average 158 | . 10 3 . . 29 679 582 305 117 171 82 104 87 229 96 86 32 192 31 41 Influence Increases 5620 | 5 268 82 . 25 452 1535 200 170 342 192 14 192 158 468 12 218 459 320 399 109 Destroy 0b10 Robot/C 2360 | . 160 80 . 20 260 680 120 20 120 40 . 40 . 235 . 90 180 105 195 15 Destroy 0b10 Robot/NC 103 | 5 5 . . 5 15 . 10 . 5 . . . . 10 . . 36 4 8 . Destroy Leader 374 | . 32 . . . 84 20 32 . 30 10 . . . 38 . 8 56 8 48 8 Allied During Kill 111 | . . . . . . 42 17 . 6 6 . 2 . 1 . 18 19 . . . Trap Triggered on 0b10 38 | . . . . . . 30 . . . . . . . . . . 8 . . . Successful Hack 214 | . 53 . . . 18 14 16 30 . 14 14 . 6 14 . . 12 11 . 12 Disable Machine 189 | . 15 . . . 45 . . . 15 . . . 90 . . . 12 . 12 . Anti-Garrison Action 1366 | . . . . . . 600 . 100 150 100 . 100 . 88 . 76 . 114 . 38 Destroy Structure 529 | . 3 2 . . 15 149 5 5 16 22 . 50 62 40 12 26 28 30 64 . Partial Spotted 36 | . . . . . . . . . . . . . . . . . . 12 24 . Lose Combat Pursuer 300 | . . . . . 15 . . 15 . . . . . 42 . . 108 36 48 36 Influence Decreases 5555 | 5 268 82 . 25 317 278 1224 151 615 115 151 37 362 52 433 80 587 23 671 79 Entered New Map 1659 | . . . . . . 48 662 111 184 35 91 17 100 2 201 . 61 3 135 9 Time Decay 2673 | 5 268 82 . 25 287 . 342 . 411 . 60 . 262 . 232 . 296 . 403 . Lost Part 663 | . . . . . 30 110 10 . . 30 . 20 . 10 . 60 170 20 133 70 Lost Ally 410 | . . . . . . 120 60 40 20 50 . . . 40 . 20 60 . . . Purge Threat 150 | . . . . . . . 150 . . . . . . . . . . . . . Squads Dispatched 31 | . 1 . . . 2 . 4 . 7 . . . 1 . 1 . 6 . 9 . Investigation 6 | . 1 . . . 2 . 2 . . . . . . . . . . . 1 . Extermination 14 | . . . . . . . 2 . 2 . . . 1 . 1 . 4 . 4 . Reinforcement 8 | . . . . . . . . . 2 . . . . . . . 2 . 4 . Assault 2 | . . . . . . . . . 2 . . . . . . . . . . . Garrison 1 | . . . . . . . . . 1 . . . . . . . . . . . Intercept . | . . . . . . . . . . . . . . . . . . . . . Searches Triggered . | . . . . . . . . . . . . . . . . . . . . . Construction Impeded 3 | . . . . . . . . . 2 . . . . . . . 1 . . . Haulers Reinforced . | . . . . . . . . . . . . . . . . . . . . . Active Scanning Responses . | . . . . . . . . . . . . . . . . . . . . . Cargo Convoy Interrupts . | . . . . . . . . . . . . . . . . . . . . . Stealth | -11 -10 -10 -10 -9 -8 -8 -7 -7 -6 -6 -5 -5 -5 -5 -4 -4 -3 -3 -3 -3 --------- Run | Yrd Mat Min Exi Min Mat Gar Fac Gar Fac Gar Fac Gar Fac Gar Fac Gar Res Gar Res Gar Distress Signals 8 | . . . . 2 . 1 2 . . . . . . . . . 2 . 1 . Communications Jammed . | . . . . . . . . . . . . . . . . . . . . . Distress Signals . | . . . . . . . . . . . . . . . . . . . . . Times Spotted 233 | . 10 6 . 5 19 36 8 4 12 6 . 5 2 17 1 9 37 10 36 10 Peak Tracking Total 11 | . 3 3 . 2 3 6 3 2 3 6 . 4 1 5 2 3 11 4 11 6 Tactical Retreats 16 | . . 1 . . 1 . . 1 . . . . . 3 . . 6 2 1 1 Traps | -11 -10 -10 -10 -9 -8 -8 -7 -7 -6 -6 -5 -5 -5 -5 -4 -4 -3 -3 -3 -3 ------- Run | Yrd Mat Min Exi Min Mat Gar Fac Gar Fac Gar Fac Gar Fac Gar Fac Gar Res Gar Res Gar Traps Triggered 22 | . 1 . . . 2 5 . 2 1 . . 2 . 2 2 2 . 1 2 . Indirectly . | . . . . . . . . . . . . . . . . . . . . . Trap Hack Attempts 23 | . . . . . . . . . . . . . . . . 23 . . . . Triggered . | . . . . . . . . . . . . . . . . . . . . . Disarmed 2 | . . . . . . . . . . . . . . . . 2 . . . . Reprogrammed . | . . . . . . . . . . . . . . . . . . . . . Reused 5 | . . . . 1 . 3 . . . . . . . . . . 1 . . . Traps Extracted . | . . . . . . . . . . . . . . . . . . . . . Installed 7 | . . 2 . 1 . 3 . . . . . . . . . . 1 . . . Triggered 4 | . . . . . . 3 . . . . . . . . . . 1 . . . Most Traps Carried 4 | . . 3 1 1 . 4 1 1 1 1 1 1 1 1 1 1 1 . . . Machines | -11 -10 -10 -10 -9 -8 -8 -7 -7 -6 -6 -5 -5 -5 -5 -4 -4 -3 -3 -3 -3 ---------- Run | Yrd Mat Min Exi Min Mat Gar Fac Gar Fac Gar Fac Gar Fac Gar Fac Gar Res Gar Res Gar Machines Disabled 36 | . 1 . . . 3 8 . 2 2 2 . 2 6 3 . 2 1 2 1 1 Max in Single Turn 1 | . 1 . . . 1 1 . 1 1 1 . 1 . 1 . 1 1 1 1 1 Garrison Access 1 | . . . . . . . . . 1 . . . . . . . . . . . Garrison Relay 21 | . . . . . . 9 . 2 . 1 . 2 . 2 . 2 . 2 . 1 Machines Repaired . | . . . . . . . . . . . . . . . . . . . . . Machines Dismantled . | . . . . . . . . . . . . . . . . . . . . . Machines Sabotaged . | . . . . . . . . . . . . . . . . . . . . . Overloaded Fab Kills . | . . . . . . . . . . . . . . . . . . . . . Hacking | -11 -10 -10 -10 -9 -8 -8 -7 -7 -6 -6 -5 -5 -5 -5 -4 -4 -3 -3 -3 -3 --------- Run | Yrd Mat Min Exi Min Mat Gar Fac Gar Fac Gar Fac Gar Fac Gar Fac Gar Res Gar Res Gar Machines Accessed 53 | . 8 . 1 . 5 2 6 2 4 1 3 1 4 1 4 2 4 2 2 1 Terminals 35 | . 7 . . . 4 2 3 2 2 1 1 1 2 1 . 2 3 2 1 1 Fabricators 5 | . . . . . . . 1 . 1 . 1 . 1 . 1 . . . . . Repair Stations 3 | . 1 . . . . . 1 . . . . . . . 1 . . . . . Recycling Units . | . . . . . . . . . . . . . . . . . . . . . Scanalyzers 1 | . . . . . . . . . . . . . . . 1 . . . . . Garrison Access 8 | . . . . . 1 . 1 . 1 . 1 . 1 . 1 . 1 . 1 . Total Hacks 125 | . 37 . 1 . 13 4 15 3 6 2 6 3 9 2 6 3 7 4 3 1 Successful 61 | . 22 . 1 . 3 1 8 2 3 1 4 . 4 1 3 1 3 1 2 1 Failed 64 | . 15 . . . 10 3 7 1 3 1 2 3 5 1 3 2 4 3 1 . Catastrophic 18 | . 2 . . . 1 1 2 . 2 1 . 1 2 . 1 1 2 2 . . Database Lockouts . | . . . . . . . . . . . . . . . . . . . . . Manual 35 | . 23 . 1 . 3 . 2 . . . . . 4 . . . 1 1 . . Terminals 83 | . 25 . . . 12 4 7 3 3 2 3 3 5 2 . 3 5 4 1 1 Fabricators 9 | . . . . . . . 3 . 1 . 1 . 2 . 2 . . . . . Repair Stations 16 | . 12 . . . . . 3 . . . . . . . 1 . . . . . Recycling Units . | . . . . . . . . . . . . . . . . . . . . . Scanalyzers 1 | . . . . . . . . . . . . . . . 1 . . . . . Garrison Access 15 | . . . . . 1 . 2 . 2 . 2 . 2 . 2 . 2 . 2 . Terminal Hacks 19 | . 4 . 1 . 2 1 1 2 . 1 1 . 1 1 . 1 1 1 . 1 Part Schematic 1 | . 1 . . . . . . . . . . . . . . . . . . . Robot Schematic 1 | . 1 . . . . . . . . . . . . . . . . . . . Robot Analysis 1 | . 1 . . . . . . . . . . . . . . . . . . . Branch Access Points 1 | . . . . . 1 . . . . . . . . . . . . . . . Emergency Access Points 3 | . . . . . . 1 . . . . . . . . . . . 1 . 1 Terminal Index 2 | . 1 . . . . . . . . . 1 . . . . . . . . . Scanalyzer Index 1 | . . . . . . . . . . . . . . . . . 1 . . . Registered Components 1 | . . . . . 1 . . . . . . . . . . . . . . . Zone Layout 2 | . . . . . . . 1 . . . . . 1 . . . . . . . Garrison Registry 3 | . . . . . . . . 1 . 1 . . . . . 1 . . . . Patrol Navigation 1 | . . . . . . . . . . . . . . 1 . . . . . . Security Stations 1 | . . . . . . . . 1 . . . . . . . . . . . . Proto ID Catalog 1 | . . . 1 . . . . . . . . . . . . . . . . . Fabricator Hacks 5 | . . . . . . . 1 . 1 . 1 . 1 . 1 . . . . . Network Status 4 | . . . . . . . . . 1 . 1 . 1 . 1 . . . . . Load Schematic 1 | . . . . . . . 1 . . . . . . . . . . . . . Repair Station Hacks 11 | . 9 . . . . . 2 . . . . . . . . . . . . . Scan Component 6 | . 5 . . . . . 1 . . . . . . . . . . . . . Repair 5 | . 4 . . . . . 1 . . . . . . . . . . . . . Recycling Unit Hacks . | . . . . . . . . . . . . . . . . . . . . . Scanalyzer . | . . . . . . . . . . . . . . . . . . . . . Garrison Access Hacks 15 | . . . . . 1 . 2 . 2 . 2 . 2 . 2 . 2 . 2 . Unlock Access 8 | . . . . . 1 . 1 . 1 . 1 . 1 . 1 . 1 . 1 . Coupler Status 7 | . . . . . . . 1 . 1 . 1 . 1 . 1 . 1 . 1 . Unauthorized Hacks 11 | . 9 . . . . . 2 . . . . . . . . . . . . . Terminals 9 | . 9 . . . . . . . . . . . . . . . . . . . Botnet 1 | . 1 . . . . . . . . . . . . . . . . . . . Operators 2 | . 2 . . . . . . . . . . . . . . . . . . . Skim 6 | . 6 . . . . . . . . . . . . . . . . . . . Fabricators 1 | . . . . . . . 1 . . . . . . . . . . . . . Liberate 1 | . . . . . . . 1 . . . . . . . . . . . . . Repair Stations 1 | . . . . . . . 1 . . . . . . . . . . . . . Mechanics 1 | . . . . . . . 1 . . . . . . . . . . . . . Recycling Units . | . . . . . . . . . . . . . . . . . . . . . Scanalyzers . | . . . . . . . . . . . . . . . . . . . . . Garrison Access . | . . . . . . . . . . . . . . . . . . . . . Data Cores Recovered 2 | . . . . . . . 1 . 1 . . . . . . . . . . . Used 1 | . . . . . . . . . 1 . . . . . . . . . . . Hacking Detections 43 | . 8 . . . 4 2 5 1 3 1 2 1 3 1 4 1 4 1 1 1 Full Trace Events 5 | . . . . . . 1 2 . . 1 . . . . . . . 1 . . Feedback Events 1 | . . . . . . . 1 . . . . . . . . . . . . . Corruption 1 | . . . . . . . 1 . . . . . . . . . . . . . Feedback Blocked . | . . . . . . . . . . . . . . . . . . . . . Robot Schematics Acquired 1 | . 1 . . . . . . . . . . . . . . . . . . . Robots Built . | . . . . . . . . . . . . . . . . . . . . . Authchips . | . . . . . . . . . . . . . . . . . . . . . Time . | . . . . . . . . . . . . . . . . . . . . . Total Robot Build Rating . | . . . . . . . . . . . . . . . . . . . . . Part Schematics Acquired 1 | . 1 . . . . . . . . . . . . . . . . . . . Parts Built . | . . . . . . . . . . . . . . . . . . . . . Authchips . | . . . . . . . . . . . . . . . . . . . . . Time . | . . . . . . . . . . . . . . . . . . . . . Total Part Build Rating . | . . . . . . . . . . . . . . . . . . . . . Part Studies Acquired . | . . . . . . . . . . . . . . . . . . . . . Parts Repaired 5 | . 4 . . . . . 1 . . . . . . . . . . . . . Time 190 | . 104 . . . . . 86 . . . . . . . . . . . . . Parts Recycled . | . . . . . . . . . . . . . . . . . . . . . Recycled Matter . | . . . . . . . . . . . . . . . . . . . . . Retrieved Matter . | . . . . . . . . . . . . . . . . . . . . . Retrieved Components . | . . . . . . . . . . . . . . . . . . . . . Parts Scanalyzed . | . . . . . . . . . . . . . . . . . . . . . Part Schematics Acquired . | . . . . . . . . . . . . . . . . . . . . . Parts Damaged . | . . . . . . . . . . . . . . . . . . . . . Bothacking | -11 -10 -10 -10 -9 -8 -8 -7 -7 -6 -6 -5 -5 -5 -5 -4 -4 -3 -3 -3 -3 ------------ Run | Yrd Mat Min Exi Min Mat Gar Fac Gar Fac Gar Fac Gar Fac Gar Fac Gar Res Gar Res Gar Used RIF Installer 9 | . . . . . . 1 . 2 . 1 . 1 . 1 . 2 . 1 . . Coupler Efficiency 1 | . . . . . . . . . . . . . . . . . . 1 . . Hotswap 1 | . . . . . . . . . . . . . . . . 1 . . . . Code Merge 1 | . . . . . . . . . . . . . . . . 1 . . . . Command Fork 1 | . . . . . . . . . . . . 1 . . . . . . . . Threat Obfuscator 1 | . . . . . . . . . . . . . . 1 . . . . . . Zone Cloak 1 | . . . . . . . . . . 1 . . . . . . . . . . Watcher Feeds 1 | . . . . . . . . 1 . . . . . . . . . . . . Structural Interface 1 | . . . . . . . . 1 . . . . . . . . . . . . Robots Hacked 34 | . . . . . . . 1 1 8 1 . 3 2 5 3 3 7 . . . Non-combat 8 | . . . . . . . 1 . 2 . . . 1 . 2 . 2 . . . Combat 26 | . . . . . . . . 1 6 1 . 3 1 5 1 3 5 . . . Robot Hacks Applied 36 | . . . . . . . 1 1 8 1 . 3 2 6 4 3 7 . . . parse_system 1 | . . . . . . . . . . . . . . . . 1 . . . . generate_anomaly 1 | . . . . . . . . . . . . . . . 1 . . . . . map_walls 2 | . . . . . . . . . . . . . . . 1 . 1 . . . purge_threat 1 | . . . . . . . 1 . . . . . . . . . . . . . block_reporting 2 | . . . . . . . . . 1 . . . . . . . 1 . . . map_route 1 | . . . . . . . . . . . . . 1 . . . . . . . scatter_targeting 1 | . . . . . . . . . . . . . . 1 . . . . . . broadcast_data 3 | . . . . . . . . . 1 . . . . 2 . . . . . . disrupt_area 1 | . . . . . . . . . 1 . . . . . . . . . . . amplify_resonance 3 | . . . . . . . . . . . . 1 . 1 . 1 . . . . wipe_record 1 | . . . . . . . . . . . . . . . 1 . . . . . reboot_system 4 | . . . . . . . . . 3 . . . 1 . . . . . . . overwrite_iff 6 | . . . . . . . . . . 1 . 2 . 2 . . 1 . . . streamctrl_high 2 | . . . . . . . . . . . . . . . . 1 1 . . . formatsys_low 2 | . . . . . . . . . 1 . . . . . 1 . . . . . formatsys_high 5 | . . . . . . . . 1 1 . . . . . . . 3 . . . Relay Couplers Released 90 | . . . . . . 41 . 7 2 4 . 7 . 8 . 7 . 8 3 3 Machine Destruction 87 | . . . . . . 41 . 7 2 4 . 7 . 8 . 7 . 8 . 3 Programmers 3 | . . . . . . . . . . . . . . . . . . . 3 . Attached 16 | . . . . . . 1 1 2 2 . . 1 1 1 1 . 4 . 1 1 Merged Code Value 42 | . . . . . . . . . . . . . . . . 22 9 11 . . Fabnet Peak Effective % . | . . . . . . . . . . . . . . . . . . . . . Robots Rewired 8 | . . . . . . 6 . . . . . . . . . 2 . . . . Allies Hacked 2 | . . . . . . 2 . . . . . . . . . . . . . . Hacks Repelled . | . . . . . . . . . . . . . . . . . . . . . Allies | -11 -10 -10 -10 -9 -8 -8 -7 -7 -6 -6 -5 -5 -5 -5 -4 -4 -3 -3 -3 -3 -------- Run | Yrd Mat Min Exi Min Mat Gar Fac Gar Fac Gar Fac Gar Fac Gar Fac Gar Res Gar Res Gar Total Allies 33 | . . . . . . 7 3 1 2 3 . 4 . 2 2 3 6 . . . Largest Group 6 | . . . . . . 6 3 2 1 3 . 2 2 1 2 2 2 . . . Highest-Rated Group 230 | . . . . . . 230 141 48 32 217 . 142 142 29 29 198 147 . . . Highest-Rated Ally 149 | . . . . . . 149 141 32 32 95 . 80 80 29 23 99 142 . . . Total Orders 9 | . . . . . . . . . 2 2 . . . . 2 3 . . . . STAY 3 | . . . . . . . . . . 1 . . . . . 2 . . . . FOLLOW 4 | . . . . . . . . . 1 1 . . . . 1 1 . . . . AID 2 | . . . . . . . . . 1 . . . . . 1 . . . . . Ally Attacks 179 | . . . . . . 46 54 3 14 8 . 5 5 7 . 17 20 . . . Total Damage 5816 | . . . . . . 1390 697 119 461 430 . 223 680 111 . 681 1024 . . . Kills 31 | . . . . . . 8 7 . 2 1 . . 2 1 . 3 7 . . . Allies Corrupted 2 | . . . . . . 1 . . . . . 1 . . . . . . . . Allies Melted . | . . . . . . . . . . . . . . . . . . . . . Intel | -11 -10 -10 -10 -9 -8 -8 -7 -7 -6 -6 -5 -5 -5 -5 -4 -4 -3 -3 -3 -3 ------- Run | Yrd Mat Min Exi Min Mat Gar Fac Gar Fac Gar Fac Gar Fac Gar Fac Gar Res Gar Res Gar Active Infowar (turns) 13657 | . . 1616 492 775 278 1 583 403 1140 348 139 484 565 765 544 337 1450 904 2276 557 Optics 9826 | . . . . . . . 583 403 1140 348 139 484 565 765 544 337 781 904 2276 557 Sensors 1124 | . . . . . . . . . . . . . . . . . 1124 . . . Terrain 3162 | . . 1616 492 775 278 1 . . . . . . . . . . . . . . Jamming 838 | . . . . . . . . . . . . . . . . . . . 281 557 ECM 1 | . . . . . . . . . . . . . . . . . . . . 1 Robot Analysis Total 1 | . 1 . . . . . . . . . . . . . . . . . . . Derelict Logs Recovered 4 | . . 2 . 2 . . . . . . . . . . . . . . . . Drone Launches . | . . . . . . . . . . . . . . . . . . . . . Drone Recoveries . | . . . . . . . . . . . . . . . . . . . . . Exploration | -11 -10 -10 -10 -9 -8 -8 -7 -7 -6 -6 -5 -5 -5 -5 -4 -4 -3 -3 -3 -3 ------------- Run | Yrd Mat Min Exi Min Mat Gar Fac Gar Fac Gar Fac Gar Fac Gar Fac Gar Res Gar Res Gar Turns Passed 18350 | 113 1346 1688 492 775 1157 1919 777 403 1140 348 139 484 565 765 544 438 1520 904 2276 557 Spaces Moved 8732 | 46 595 614 205 290 518 899 436 312 728 229 98 263 444 357 380 239 939 359 661 120 Core 2 | 1 . . . . 1 . . . . . . . . . . . . . . . Treads 3429 | 45 595 614 205 290 468 545 74 . . 80 . . . . . . . . 393 120 Legs 5007 | . . . . . 49 354 362 312 728 149 98 263 444 357 380 239 796 251 225 . Wheels 173 | . . . . . . . . . . . . . . . . . 22 108 43 . Hover 121 | . . . . . . . . . . . . . . . . . 121 . . . Flight . | . . . . . . . . . . . . . . . . . . . . . Fastest Speed 43 | 50 160 240 240 240 130 123 110 113 113 106 116 116 116 116 115 115 43 186 172 172 Average Speed 152 | 157 184 240 240 240 158 149 119 113 114 123 116 116 116 125 115 115 115 196 180 174 Slowest Speed 490 | 160 320 240 240 240 300 260 180 113 116 190 116 116 116 190 116 116 280 400 490 250 Overloaded Moves . | . . . . . . . . . . . . . . . . . . . . . Propulsion Burnouts . | . . . . . . . . . . . . . . . . . . . . . Robots Hopped . | . . . . . . . . . . . . . . . . . . . . . Potential Cave-ins 24 | . . . . . . . . . . 3 . 8 . . . 9 . 4 . . Cave-ins Triggered 5 | . . . . . . . . . . . . . . . . 2 . . 3 . Exploration Rate (%) 38 | 6 82 93 60 63 40 93 12 53 20 37 6 32 16 43 13 23 23 38 29 18 Regions Visited 20 Branch Regions 3 Pre-discovered Areas 2 | . 1 1 . . . . . . . . . . . . . . . . . . Known Exits Taken 9 | . 1 . . . 1 . 1 . 1 . 1 . 1 . 1 . 1 . 1 . Unknown Exits Taken 4 | 1 . 1 1 1 . . . . . . . . . . . . . . . . Scrap Searched 3 | . . 1 . 2 . . . . . . . . . . . . . . . . Spaces Dug 334 | . 3 2 . . . 16 2 . 12 56 . 58 5 2 6 130 9 10 23 . Terrain Destroyed 482 | . 3 2 . . 15 59 2 . 18 56 . 95 5 12 6 130 13 29 37 . Melee 32 | . . 2 . . . 16 2 . . . . 2 2 2 . . 6 . . . Projectile 115 | . 3 . . . 3 1 . . 18 . . 13 3 10 6 . 7 14 37 . AOE 335 | . . . . . 12 42 . . . 56 . 80 . . . 130 . 15 . . Terrain Rammed . | . . . . . . . . . . . . . . . . . . . . . Walls Destroyed . | . . . . . . . . . . . . . . . . . . . . . Machines Disabled . | . . . . . . . . . . . . . . . . . . . . . Actions | -11 -10 -10 -10 -9 -8 -8 -7 -7 -6 -6 -5 -5 -5 -5 -4 -4 -3 -3 -3 -3 --------- Run | Yrd Mat Min Exi Min Mat Gar Fac Gar Fac Gar Fac Gar Fac Gar Fac Gar Res Gar Res Gar Total 12788 | 76 788 785 206 339 747 1330 686 355 994 281 123 388 487 568 479 343 1283 493 1594 443 Wait 2618 | 17 129 133 . 27 85 175 211 26 195 21 16 62 10 95 73 23 173 55 802 290 Move 8716 | 45 594 613 204 289 518 898 435 311 727 228 98 262 444 356 380 236 939 358 661 120 Hop . | . . . . . . . . . . . . . . . . . . . . . Pick Up 237 | 4 21 4 1 2 46 31 11 5 12 6 2 7 12 11 5 3 22 14 15 3 Fast Attach 48 | 6 2 . . . . 4 7 . 1 1 1 . . 2 . . 14 3 7 . Attach 110 | . 3 . . . 11 8 2 3 1 2 3 4 2 2 7 1 29 11 12 9 Detach 28 | . 1 . . . 2 . 1 . . . 1 . . . 2 . 15 3 3 . Swap 93 | . 6 7 . 3 19 15 3 . 5 3 1 4 4 11 1 3 4 . 3 1 Drop 97 | . 6 4 1 2 4 17 10 3 4 6 1 2 6 5 1 1 18 1 5 . Fire 531 | 4 26 11 . 15 61 54 4 1 46 14 . 28 5 64 10 26 25 40 85 12 Melee 167 | . . 11 . . 1 38 2 6 3 . . 19 3 20 . 18 38 8 . . Ram . | . . . . . . . . . . . . . . . . . . . . . Kick 7 | . . . . . . . . . . . . . 1 . . . 5 . 1 . Crush 8 | . . . . . . . . . . . . . . . . . . . . 8 Escape Stasis 7 | . . . . . . 3 . . . . . . . 2 . 2 . . . . Rewire 91 | . . . . . . 84 . . . . . . . . . 7 . . . . Trap 30 | . . 2 . 1 . 3 . . . . . . . . . 23 1 . . . Miscellaneous . | . . . . . . . . . . . . . . . . . . . . . Route ------- -11/Scrapyard -10/Materials (discovered 6 exits: *Mat x3 / *Min x2 / Sub) -10/Mines (discovered 4 exits: *Mat x2 / *Exi / *Sub) -10/Exiles -9/Mines -8/Materials (discovered 3 exits: Fac x2 / Gar) -8/Garrison (discovered 3 exits: *Fac x3) -7/Factory (discovered 2 exits: Sto / Gar) -7/Garrison (discovered 3 exits: *Fac x3) -6/Factory (discovered 4 exits: *Fac / *Low x2 / Gar) -6/Garrison (discovered 3 exits: *Fac x3) -5/Factory -5/Garrison -5/Factory (discovered 3 exits: *Fac x2 / Gar) -5/Garrison -4/Factory -4/Garrison (discovered 3 exits: *Res x3) -3/Research -3/Garrison -3/Research -3/Garrison History --------- Turn | Location | Event 31 | -11/Scrapyard | Discovered new exit (range 14) 114 | -11/Scrapyard | Entered Materials 115 | -10/Materials | Met a group of wandering Federalists 306 | -10/Materials | Build established: Mutant 452 | -10/Materials | Discovered new exit (range 14) 692 | -10/Materials | Discovered new exit (range 16) 822 | -10/Materials | Discovered new exit (range 13) 922 | -10/Materials | Identified exit to Materials 946 | -10/Materials | Learned 2 Mines zone layouts 965 | -10/Materials | Identified exit to Mines 965 | -10/Materials | Identified exit to Subcaves 967 | -10/Materials | Loaded intel: 7 trap records 979 | -10/Materials | Learned 4 Subcaves zone layouts 981 | -10/Materials | Repaired Assault Rifle 1008 | -10/Materials | Repaired Lgt. Treads 1035 | -10/Materials | Repaired Lgt. Treads 1037 | -10/Materials | Learned location of 1 exit from Storage 1063 | -10/Materials | Repaired Assault Rifle 1460 | -10/Materials | Entered Mines 1465 | -10/Mines | Met a Derelict bent on vengeance 1492 | -10/Mines | Found a hidden stash of uninstalled traps 1540 | -10/Mines | Learned location of Storage (-7) 1552 | -10/Mines | A weapon hastily lodged in a ceiling crevice suddenly fell to the ground 2003 | -10/Mines | Learned Materials emergency access door positions 2027 | -10/Mines | Excavation squad dispatched 2027 | -10/Mines | A large section of the Mines collapsed 2138 | -10/Mines | Discovered exit to Materials (range 5) 2570 | -10/Mines | Discovered exit to Subcaves (range 10) 3138 | -10/Mines | Deemed a non-threat by the Exiles lab entrance 3138 | -10/Mines | Discovered new exit (range 5) 3148 | -10/Mines | Entered Exiles 3204 | -10/Exiles | Met 8R-AWN 3247 | -10/Exiles | Met EX-HEX 3314 | -10/Exiles | Met EX-BIN 3340 | -10/Exiles | Aligned with FarCom system 3343 | -10/Exiles | Given EX-Vault access code 3398 | -10/Exiles | Opened EX-Vault 3413 | -10/Exiles | Found Lightpack 2.0 3462 | -10/Exiles | Warned to stay clear of 0b10 Research branches 3529 | -10/Exiles | Met EX-DEC 3616 | -10/Exiles | Discovered new exit (range 11) 3640 | -10/Exiles | Left Exiles lab with Lightpack 2.0 3640 | -10/Exiles | Entered Mines 3782 | -9/Mines | Learned location of 1 exit from Materials 3840 | -9/Mines | Assembled infested the area 4014 | -9/Mines | Learned location of 1 exit from Materials 4016 | -9/Mines | Received a Rocket Launcher from a helpful Derelict 4238 | -9/Mines | Build established: Skirmisher 4398 | -9/Mines | Discovered new exit (range 7) 4415 | -9/Mines | Entered Materials 4415 | -8/Materials | Evolved 4 slots: Propulsion x1, Utility x3 4416 | -8/Materials | Identified exit to Factory 5091 | -8/Materials | Build established: Hauler-Mutant 5572 | -8/Materials | Identified exit to Garrison 5572 | -8/Materials | Entered Garrison 5686 | -8/Garrison | Triggered checkpoint 5712 | -8/Garrison | Garrison Relay disabled 6030 | -8/Garrison | Triggered checkpoint 6116 | -8/Garrison | Discovered exit to Factory (range 5) 6164 | -8/Garrison | Triggered checkpoint 6186 | -8/Garrison | Garrison Relay disabled 6304 | -8/Garrison | Triggered checkpoint 6353 | -8/Garrison | Garrison Relay disabled 6367 | -8/Garrison | Garrison Relay disabled 6374 | -8/Garrison | Garrison Relay disabled 6422 | -8/Garrison | Garrison Relay disabled 6526 | -8/Garrison | Triggered checkpoint 6584 | -8/Garrison | Discovered exit to Factory (range 12) 6706 | -8/Garrison | Triggered checkpoint 6722 | -8/Garrison | Garrison Relay disabled 6902 | -8/Garrison | Discovered exit to Factory (range 9) 6960 | -8/Garrison | Triggered checkpoint 6993 | -8/Garrison | Installed Relay Interface Framework 7010 | -8/Garrison | Triggered checkpoint 7041 | -8/Garrison | Garrison Relay disabled 7141 | -8/Garrison | Lost 3 parts (1u2w) 7202 | -8/Garrison | Rescued HV-R5K 7338 | -8/Garrison | Garrison Relay disabled 7408 | -8/Garrison | Lost 3 allies 7491 | -8/Garrison | Entered Factory 7491 | -7/Factory | Accompanied by 1 ally (HV-R5K) 7491 | -7/Factory | Evolved 2 slots: Utility x2 7492 | -7/Factory | Identified exit to Storage 7681 | -7/Factory | Found Prototype Processor 7681 | -7/Factory | Identified Exp. Core Analyzer 7947 | -7/Factory | Build established: Bothacker-Mutant 8038 | -7/Factory | Repaired Corrupted Graphene Brace 8238 | -7/Factory | Identified exit to Garrison 8268 | -7/Factory | Entered Garrison 8268 | -7/Garrison | Accompanied by 1 ally 8290 | -7/Garrison | Expanded RIF knowledge: Structural Interface 8381 | -7/Garrison | Garrison Relay disabled 8446 | -7/Garrison | Triggered checkpoint 8495 | -7/Garrison | Expanded RIF knowledge: Watcher Feeds 8535 | -7/Garrison | Learned Factory security intel 8560 | -7/Garrison | Discovered new exit (range 12) 8576 | -7/Garrison | Discovered new exit (range 57) 8576 | -7/Garrison | Discovered new exit (range 51) 8576 | -7/Garrison | Discovered new exit (range 23) 8596 | -7/Garrison | Garrison Relay disabled 8648 | -7/Garrison | Triggered checkpoint 8671 | -7/Garrison | Entered Factory 8671 | -6/Factory | Evolved 2 slots: Utility x2 8808 | -6/Factory | Discovered new exit (range 9) 9056 | -6/Factory | Identified exit to Lower Caves 9194 | -6/Factory | Allied Derelicts emerged from ambush trap array 9251 | -6/Factory | Garrison activated, responded to threat 9286 | -6/Factory | Discovered new exit (range 9) 9691 | -6/Factory | Discovered exit to Lower Caves (range 11) 9803 | -6/Factory | Identified exit to Garrison 9811 | -6/Factory | Entered Garrison 9811 | -6/Garrison | Accompanied by 1 ally 9843 | -6/Garrison | Found embedded Infiltrators 9870 | -6/Garrison | Discovered new exit (range 45) 9870 | -6/Garrison | Discovered new exit (range 55) 9870 | -6/Garrison | Discovered new exit (range 53) 9977 | -6/Garrison | Triggered checkpoint 9983 | -6/Garrison | Garrison Relay disabled 10048 | -6/Garrison | Spotted B-75 Beast 10059 | -6/Garrison | Spotted B-75 Beast 10126 | -6/Garrison | Lost 3 parts (1p2w) 10139 | -6/Garrison | Expanded RIF knowledge: Zone Cloak 10159 | -6/Garrison | Entered Factory 10159 | -5/Factory | Evolved 2 slots: Utility x1, Weapon x1 10298 | -5/Factory | Identified exit to Garrison 10298 | -5/Factory | Entered Garrison 10358 | -5/Garrison | Triggered checkpoint 10373 | -5/Garrison | Garrison Relay disabled 10447 | -5/Garrison | Build established: Botlord-Mutant 10617 | -5/Garrison | Expanded RIF knowledge: Command Fork 10638 | -5/Garrison | Triggered checkpoint 10712 | -5/Garrison | Garrison Relay disabled 10732 | -5/Garrison | Found embedded Infiltrators 10748 | -5/Garrison | Discovered new exit (range 12) 10782 | -5/Garrison | Entered Factory 10782 | -5/Factory | Accompanied by 2 allies 10908 | -5/Factory | Discovered new exit (range 17) 10972 | -5/Factory | Identified exit to Factory 11287 | -5/Factory | Discovered exit to Factory (range 7) 11347 | -5/Factory | Identified exit to Garrison 11347 | -5/Factory | Entered Garrison 11591 | -5/Garrison | Triggered checkpoint 11609 | -5/Garrison | Garrison Relay disabled 11685 | -5/Garrison | System corruption reached 10% 11761 | -5/Garrison | Triggered checkpoint 11934 | -5/Garrison | Expanded RIF knowledge: Threat Obfuscation 11975 | -5/Garrison | Triggered checkpoint 11989 | -5/Garrison | Garrison Relay disabled 12063 | -5/Garrison | Discovered exit to Factory (range 13) 12112 | -5/Garrison | Entered Factory 12112 | -4/Factory | Evolved 2 slots: Power x1, Propulsion x1 12322 | -4/Factory | Build established: Botlord-Skirmisher 12656 | -4/Factory | Identified exit to Garrison 12656 | -4/Factory | Entered Garrison 12675 | -4/Garrison | Discovered new exit (range 42) 12675 | -4/Garrison | Discovered new exit (range 66) 12675 | -4/Garrison | Discovered new exit (range 71) 12704 | -4/Garrison | Triggered checkpoint 12742 | -4/Garrison | Expanded RIF knowledge: Hotswap 12752 | -4/Garrison | Garrison Relay disabled 12845 | -4/Garrison | Spotted Striker 12859 | -4/Garrison | Rewired Striker 12860 | -4/Garrison | Rewired Striker 12870 | -4/Garrison | Allies destroyed Striker 12989 | -4/Garrison | Crushed by falling debris 12993 | -4/Garrison | Crushed by falling debris 12994 | -4/Garrison | System corruption reached 10% 13017 | -4/Garrison | Expanded RIF knowledge: Code Merge 13029 | -4/Garrison | Lost 6 parts (1n3u2w) 13031 | -4/Garrison | Garrison Relay disabled 13094 | -4/Garrison | Entered Research 13094 | -3/Research | Evolved 2 slots: Propulsion x1, Utility x1 13485 | -3/Research | Build established: Botlord-Assassin 14323 | -3/Research | Lost 3 parts (1p1u1w) 14461 | -3/Research | System corruption reached 10% 14569 | -3/Research | Spotted B-86 Titan 14580 | -3/Research | Assimilated Titan 8a with formatsys_high 14614 | -3/Research | Identified exit to Garrison 14614 | -3/Research | Entered Garrison 14632 | -3/Garrison | Lost 12 parts (2p5n1u4w) 14663 | -3/Garrison | Expanded RIF knowledge: Coupler Efficiency 14758 | -3/Garrison | Triggered checkpoint 14855 | -3/Garrison | Build established: Mutant 14855 | -3/Garrison | Core integrity fell below 50% 14887 | -3/Garrison | Garrison Relay disabled 15165 | -3/Garrison | Spotted B-86 Titan 15376 | -3/Garrison | Discovered new exit (range 11) 15437 | -3/Garrison | Garrison Relay disabled 15516 | -3/Garrison | Identified exit to Research 15518 | -3/Garrison | Entered Research 15606 | -3/Research | Build established: Scavenger-Skirmisher 16346 | -3/Research | Lost 8 parts (1p3n1u3w) 16741 | -3/Research | Build established: Tank 17029 | -3/Research | Crushed by falling debris 17052 | -3/Research | Crushed by falling debris 17071 | -3/Research | Crushed by falling debris 17071 | -3/Research | Core integrity fell below 20% 17071 | -3/Research | System corruption reached 30% 17102 | -3/Research | Lost 4 parts (4u) 17377 | -3/Research | Build established: Skirmisher 17794 | -3/Research | Identified exit to Garrison 17794 | -3/Research | Entered Garrison 17812 | -3/Garrison | Lost 3 parts (1u2w) 18119 | -3/Garrison | Build established: Infiltrator-Tank 18166 | -3/Garrison | Garrison Relay disabled 18351 | -3/Garrison | Destroyed by S-43 Plague with Heavy Machine Gun Last Messages --------------- corruption cleaned. 18315_ System corrupted: FCS attempts to trigger Gamma Rifle. 18315_ System corrupted: Gamma Rifle misfires. 18316_ Com. Battery destroyed. 18329_ Slammed into S-43 Plague. 18333_ System corrupted: Arm. Medium Treads rejected. 18334_ Slammed into S-43 Plague. 18338_ Gamma Rifle destroyed. 18338_ Mic. Antimatter Reactor destroyed. 18339_ Slammed into S-43 Plague. 18340_ Relay Coupler [NC] destroyed. 18341_ Crushed S-43 Plague. 18341_ S-43 Plague destroyed. 18342_ P-80 Master resets P-80 Master, system corruption cleaned. 18348_ System corrupted: Energy discharge (-10). 18348_ Adv. Reaction Control System destroyed. 18350_ E-15 Imp springs to life. Map ----- +----------------------------------------------------+ | ???????????????????????????????????????????? | | ???????????????????????????????????????????? | | ???????????????????????????????????????????? | | ???????????????????????????????????????????? | | ???????????????????????????????????????????? | | ???????????????????????????????????????????? | | ???????????????????????????????????????????? | | ???????????????????????????????????????????? | | ??????????????????????????????????#######??? | | ??????????????????????????????????#"" ""#??? | | ???????????????????????#####"""##### ##??? | | ???????????????????????# #??? | | ???????????????????????# #??? | | ???????????????????????# ########T###++#??? | | ????????#####??????????# #??????##??# #??? | | ????????# #??????????# #??????????# #??? | | ????????# ############ ############++#### | | ????????# | | ????????# | | ????????# ^ | | ????????#################+#############+### | | ???????###########??????# #???????????# #?? | | ???????# ??????# #???????????# #??? | | ???????# xxxx ee e ?????# #???????????# #??? | | ???????# e######p#############=#??? | | ???????# @ spsp #??? | | ???????# #################### #??? | | ???????# YYYY ssss ???????????????????# ###? | | ???????# ????????????????????# /? | | ???????###########????????????????????#####? | | ???????????????????????????????????????????? | | ???????????????????????????????????????????? | | ???????????????????????????????????????????? | | ???????????????????????????????????????????? | | ???????????????????????????????????????????? | | ???????????????????????????????????????????? | | ???????????????????????????????????????????? | | ???????????????????????????????????????????? | | ???????????????????????????????????????????? | | ???????????????????????????????????????????? | | ???????????????????????????????????????????? | | ???????????????????????????????????????????? | | ???????????????????????????????????????????? | | ???????????????????????????????????????????? | | ?????????????????????????????+??+???+??????? | | ?????????????????????????????+??+??????????? | | ???????????????????????????????????????????? | | ???????????????????????????????????????????? | | ???????????????????????????????????????????? | | ???????????????????????????????????????????? | +----------------------------------------------------+ Best States ------------- Heat Dissipation 73 Energy Generation 45 Energy Capacity 530 Matter Stores 300 Matter Capacity 700 Sight Range 23 Robot Scan Range 16 Terrain Scan Range 16 Terrain Scan Density 85 Jamming Range 16 Additional Mass Support 9 Armor Coverage 600 Utility Shielding 66 Weapon Shielding 33 Phase Shifting 15 Evasion (%) 70 Targeting Accuracy 20 Core Analysis 8 Recoil Reduction 5 Matter Filtering 30 Particle Charging 20 Relay Coupler Types 5 Relay Coupler Value 125 Authchip Count 1 Item Schematics ----------------- Hcp. Storage Unit | -10/Materials | Hacked Robot Schematics ------------------ M-13 Machinist | -10/Materials | Hacked Fabricated ------------ Nothing Repaired ---------- Assault Rifle | 41% | -10/Materials Lgt. Treads | 48% | -10/Materials Lgt. Treads | 69% | -10/Materials Assault Rifle | 59% | -10/Materials Graphene Brace | 89% | -7/Factory | Corrupted Studied --------- None Alien Tech Used ----------------- None Achievements -------------- Botjacking Factory Defaults Hackerman Challenges ------------ None Game ------ Seed ServoLaunchProcessor Manual? 0 Play Time 04:23:44 Cumulative 67.1 hours Start 2025.12.28 @ 11:58:46 End 2025.12.29 @ 12:45:30 Sessions 5 Manual Loads 0 Difficulty Rogue Special Mode None Game No. 48 Rogue 48 Adventurer 0 Explorer 0 Win Type - Total 0 Types 0/0/0/0/0/0/0/0/0/0 Lore% 32 Gallery% 43 Achievement% 36 Wizard Run 0 Options --------- Layout 1 ASCII 0 Keyboard 0 Movement Mouse Keybinds 0 Fullscreen 1 Font 24/Smallcaps Map View 50x35 Zoom Use 0% Tactical HUD 1 Map Filters NONE Filters NONE Steam 1 RUN: d9fcb6a0-ea84-4c95-94d6-4969313db39b